[Event "Queens Festival Final-D 2022"]
[Site "Tornelo"]
[Date "2022.06.25"]
[Round "9.5"]
[White "Shah, Riya"]
[Black "Shriyan santosh Priyasha"]
[Result "0-1"]
[ECO "A03"]
[WhiteElo "1559"]
[BlackElo "1597"]
[Annotator "NA RC"]
[PlyCount "94"]
[EventDate "2022.06.24"]
[EventType "tourn"]
[EventCountry "NET"]
[SourceTitle "playchess.com"]
[Source "ChessBase"]
[SourceQuality "1"]
[TimeControl "180+2"]

1. d4 {[%emt 0:00:02]} d5 {[%emt 0:00:04]} 2. e3 {[%emt 0:00:02]} Nf6 {[%emt 0:00:02]} 3. Bd3 {[%emt 0:00:01]} g6 {[%emt 0:00:01]} 4. f4 {[%emt 0:00:01]} Bg7 {[%emt 0:00:01]} 5. Nf3 {[%emt 0:00:04]} O-O {[%emt 0:00:02]} 6. Ne5 {[%emt 0:00:02]} c5 {[%emt 0:00:02]} 7. c3 {[%emt 0:00:02]} Nbd7 {[%emt 0:00:02]} 8. O-O {[%emt 0:00:01]} a6 {[%emt 0:00:07]} 9. b3 {[%emt 0:00:01]} Qc7 {[%emt 0:00:04]} 10. Ba3 {[%emt 0:00:03]} b5 {[%emt 0:00:07]} 11. Qf3 {[%emt 0:00:06]} Bb7 {[%emt 0:00:06]} 12. Nd2 {[%emt 0:00:05]} Rfe8 {[%emt 0:00:07]} 13. Nxd7 {[%emt 0:00:14]} Nxd7 {[%emt 0:00:04]} 14. Rac1 {[%emt 0:00:08]} c4 {[%emt 0:00:03]} 15. bxc4 {[%emt 0:00:06]} dxc4 {[%emt 0:00:06]} 16. Be4 {[%emt 0:00:03]} Bxe4 {[%emt 0:00:04]} 17. Nxe4 {[%emt 0:00:04]} a5 {[%emt 0:00:15]} 18. Nc5 {[%emt 0:00:09]} Nxc5 {[%emt 0:00:07]} 19. Bxc5 {[%emt 0:00:03]} e6 {[%emt 0:00:43]} 20. e4 {[%emt 0:00:14]} f6 {[%emt 0:00:19]} 21. Rb1 {[%emt 0:00:21]} Rab8 {[%emt 0:00:07]} 22. e5 {[%emt 0:00:03]} fxe5 {[%emt 0:00:06]} 23. fxe5 {[%emt 0:00:02]} Bxe5 {[%emt 0:00:13]} 24. Qh3 {[%emt 0:00:31]} Bg7 {[%emt 0:00:11]} 25. Rbe1 {[%emt 0:00:06]} e5 {[%emt 0:00:05]} 26. Qe3 {[%emt 0:00:22]} b4 {[%emt 0:00:13]} 27. dxe5 {[%emt 0:00:07]} Rxe5 {[%emt 0:00:12]} 28. Qf2 {[%emt 0:00:24]} Rxc5 {[%emt 0:00:10]} 29. cxb4 {[%emt 0:00:10]} Rf5 {[%emt 0:00:06]} 30. Qd2 {[%emt 0:00:12]} Rxf1+ {[%emt 0:00:01]} 31. Rxf1 {[%emt 0:00:02]} axb4 {[%emt 0:00:02]} 32. Qd5+ {[%emt 0:00:02]} Kh8 {[%emt 0:00:02]} 33. Rd1 {[%emt 0:00:03]} Qb6+ {[%emt 0:00:02]} 34. Kh1 {[%emt 0:00:02]} c3 {[%emt 0:00:01]} 35. Qb3 {[%emt 0:00:02]} Bf6 {[%emt 0:00:02]} 36. h3 {[%emt 0:00:05]} Rd8 {[%emt 0:00:01]} 37. Rf1 {[%emt 0:00:02]} Bg7 {[%emt 0:00:03]} 38. Qf7 {[%emt 0:00:03]} Rf8 {[%emt 0:00:03]} 39. Qxf8+ {[%emt 0:00:04]} Bxf8 {[%emt 0:00:00]} 40. Rxf8+ {[%emt 0:00:01]} Kg7 {[%emt 0:00:01]} 41. Rf3 {[%emt 0:00:02]} b3 {[%emt 0:00:02]} 42. axb3 {[%emt 0:00:03]} Qxb3 {[%emt 0:00:02]} 43. Kh2 {[%emt 0:00:01]} Qb2 {[%emt 0:00:01]} 44. Kg3 {[%emt 0:00:01]} c2 {[%emt 0:00:01]} 45. Rc3 {[%emt 0:00:01]} Qxc3+ {[%emt 0:00:02]} 46. Kf2 {[%emt 0:00:02]} c1=Q {[%emt 0:00:03]} 47. g4 {[%emt 0:00:02]} Q1d2+ {[%emt 0:00:01]} 0-1

[Event "Queens Festival Final-D 2022"]
[Site "Tornelo"]
[Date "2022.06.25"]
[Round "10.2"]
[White "Shriyan santosh Priyasha"]
[Black "Mak, Xiu Ning Charlene"]
[Result "0-1"]
[ECO "E62"]
[WhiteElo "1597"]
[BlackElo "1573"]
[Annotator "NA RC"]
[PlyCount "160"]
[EventDate "2022.06.24"]
[EventType "tourn"]
[EventCountry "NET"]
[SourceTitle "playchess.com"]
[Source "ChessBase"]
[SourceQuality "1"]
[TimeControl "180+2"]

1. Nf3 {[%emt 0:00:02]} Nf6 {[%emt 0:00:05]} 2. d4 {[%emt 0:00:02]} g6 {[%emt 0:00:01]} 3. g3 {[%emt 0:00:02]} Bg7 {[%emt 0:00:03]} 4. Bg2 {[%emt 0:00:01]} d6 {[%emt 0:00:03]} 5. O-O {[%emt 0:00:01]} O-O {[%emt 0:00:03]} 6. c4 {[%emt 0:00:01]} c6 {[%emt 0:00:03]} 7. Nc3 {[%emt 0:00:01]} Qa5 {[%emt 0:00:02]} 8. a3 {[%emt 0:00:03]} Qh5 {[%emt 0:00:09]} 9. Re1 {[%emt 0:00:41]} Bh3 {[%emt 0:00:04]} 10. Bh1 {[%emt 0:00:03]} Ng4 {[%emt 0:00:08]} 11. Bg2 {[%emt 0:00:20]} Nd7 {[%emt 0:00:08]} 12. e4 {[%emt 0:00:07]} e5 {[%emt 0:00:11]} 13. d5 {[%emt 0:00:06]} c5 {[%emt 0:00:22]} 14. b4 {[%emt 0:00:12]} f5 {[%emt 0:00:04]} 15. Qd3 {[%emt 0:00:36]} fxe4 {[%emt 0:00:28]} 16. Nxe4 {[%emt 0:00:08]} Ndf6 {[%emt 0:00:11]} 17. Be3 {[%emt 0:00:12]} Nxe4 {[%emt 0:00:05]} 18. Qxe4 {[%emt 0:00:03]} Nxe3 {[%emt 0:00:10]} 19. Rxe3 {[%emt 0:00:04]} Bf5 {[%emt 0:00:04]} 20. Qh4 {[%emt 0:00:07]} e4 {[%emt 0:00:04]} 21. Qxh5 {[%emt 0:00:06]} gxh5 {[%emt 0:00:00]} 22. Ng5 {[%emt 0:00:11]} Bxa1 {[%emt 0:00:04]} 23. Nxe4 {[%emt 0:00:02]} Bd4 {[%emt 0:00:04]} 24. Re2 {[%emt 0:00:03]} Rae8 {[%emt 0:00:02]} 25. bxc5 {[%emt 0:00:07]} Bxc5 {[%emt 0:00:06]} 26. Kh1 {[%emt 0:00:10]} Kg7 {[%emt 0:00:06]} 27. f3 {[%emt 0:00:03]} Re7 {[%emt 0:00:08]} 28. h4 {[%emt 0:00:08]} Rfe8 {[%emt 0:00:03]} 29. Rb2 {[%emt 0:00:03]} Bxa3 {[%emt 0:00:06]} 30. Ra2 {[%emt 0:00:05]} Bc5 {[%emt 0:00:05]} 31. Nxc5 {[%emt 0:00:03]} dxc5 {[%emt 0:00:01]} 32. Rxa7 {[%emt 0:00:01]} Re1+ {[%emt 0:00:04]} 33. Kh2 {[%emt 0:00:01]} R8e7 {[%emt 0:00:03]} 34. d6 {[%emt 0:00:02]} Rd7 {[%emt 0:00:04]} 35. Ra5 {[%emt 0:00:03]} b6 {[%emt 0:00:03]} 36. Rb5 {[%emt 0:00:01]} Rxd6 {[%emt 0:00:01]} 37. Rb2 {[%emt 0:00:03]} Red1 {[%emt 0:00:04]} 38. Ra2 {[%emt 0:00:02]} R1d2 {[%emt 0:00:01]} 39. Ra7+ {[%emt 0:00:01]} Kg6 {[%emt 0:00:01]} 40. Rb7 {[%emt 0:00:03]} Bd3 {[%emt 0:00:03]} 41. Kh3 {[%emt 0:00:05]} Bxc4 {[%emt 0:00:02]} 42. Rb8 {[%emt 0:00:01]} Be6+ {[%emt 0:00:02]} 43. g4 {[%emt 0:00:03]} hxg4+ {[%emt 0:00:01]} 44. fxg4 {[%emt 0:00:01]} Bxg4+ {[%emt 0:00:02]} 45. Kxg4 {[%emt 0:00:02]} Rxg2+ {[%emt 0:00:02]} 46. Kf3 {[%emt 0:00:00]} Rgd2 {[%emt 0:00:02]} 47. Rg8+ {[%emt 0:00:02]} Kf7 {[%emt 0:00:01]} 48. Rh8 {[%emt 0:00:03]} Kg7 {[%emt 0:00:02]} 49. Rb8 {[%emt 0:00:01]} b5 {[%emt 0:00:01]} 50. Rxb5 {[%emt 0:00:03]} c4 {[%emt 0:00:03]} 51. Rg5+ {[%emt 0:00:01]} Kf6 {[%emt 0:00:04]} 52. Rc5 {[%emt 0:00:01]} R2d3+ {[%emt 0:00:02]} 53. Kg4 {[%emt 0:00:03]} c3 {[%emt 0:00:01]} 54. Rc8 {[%emt 0:00:02]} Rd7 {[%emt 0:00:10]} 55. Rf8+ {[%emt 0:00:02]} Rf7 {[%emt 0:00:01]} 56. Rc8 {[%emt 0:00:02]} Kg7 {[%emt 0:00:03]} 57. Rc5 {[%emt 0:00:03]} h6 {[%emt 0:00:13]} 58. Rc6 {[%emt 0:00:02]} Rfd7 {[%emt 0:00:05]} 59. Rc8 {[%emt 0:00:03]} R3d4+ {[%emt 0:00:04]} 60. Kf5 {[%emt 0:00:03]} Rxh4 {[%emt 0:00:07]} 61. Rxc3 {[%emt 0:00:03]} Rh5+ {[%emt 0:00:02]} 62. Ke6 {[%emt 0:00:02]} Rf7 {[%emt 0:00:04]} 63. Rg3+ {[%emt 0:00:02]} Rg5 {[%emt 0:00:01]} 64. Rd3 {[%emt 0:00:03]} h5 {[%emt 0:00:03]} 65. Rh3 {[%emt 0:00:02]} Kg6 {[%emt 0:00:02]} 66. Kd6 {[%emt 0:00:03]} Rg4 {[%emt 0:00:02]} 67. Re3 {[%emt 0:00:02]} h4 {[%emt 0:00:02]} 68. Kd5 {[%emt 0:00:02]} Rg3 {[%emt 0:00:04]} 69. Re6+ {[%emt 0:00:02]} Rf6 {[%emt 0:00:01]} 70. Re4 {[%emt 0:00:02]} h3 {[%emt 0:00:02]} 71. Rh4 {[%emt 0:00:02]} Kg5 {[%emt 0:00:03]} 72. Rh8 {[%emt 0:00:02]} Rh6 {[%emt 0:00:06]} 73. Rg8+ {[%emt 0:00:01]} Kf4 {[%emt 0:00:01]} 74. Rf8+ {[%emt 0:00:02]} Ke3 {[%emt 0:00:01]} 75. Re8+ {[%emt 0:00:01]} Kd3 {[%emt 0:00:01]} 76. Kc5 {[%emt 0:00:02]} h2 {[%emt 0:00:01]} 77. Rd8+ {[%emt 0:00:01]} Kc3 {[%emt 0:00:00]} 78. Kb5 {[%emt 0:00:03]} h1=Q {[%emt 0:00:02]} 79. Rc8+ {[%emt 0:00:01]} Kb3 {[%emt 0:00:01]} 80. Ka5 {[%emt 0:00:03]} Qd5+ {[%emt 0:00:02]} 0-1

[Event "Queens Festival Final-D 2022"]
[Site "Tornelo"]
[Date "2022.06.25"]
[Round "10.3"]
[White "Aydogan, Arya"]
[Black "Shah, Riya"]
[Result "1-0"]
[ECO "C62"]
[WhiteElo "1409"]
[BlackElo "1559"]
[Annotator "NA RC"]
[PlyCount "97"]
[EventDate "2022.06.24"]
[EventType "tourn"]
[EventCountry "NET"]
[SourceTitle "playchess.com"]
[Source "ChessBase"]
[SourceQuality "1"]
[TimeControl "180+2"]

1. e4 {[%emt 0:00:02]} e5 {[%emt 0:00:04]} 2. Nf3 {[%emt 0:00:02]} Nc6 {[%emt 0:00:02]} 3. Nc3 {[%emt 0:00:01]} Nf6 {[%emt 0:00:02]} 4. Bb5 {[%emt 0:00:02]} d6 {[%emt 0:00:01]} 5. d4 {[%emt 0:00:02]} exd4 {[%emt 0:00:03]} 6. Nxd4 {[%emt 0:00:01]} Bd7 {[%emt 0:00:01]} 7. Bxc6 {[%emt 0:00:01]} Bxc6 {[%emt 0:00:01]} 8. Nxc6 {[%emt 0:00:01]} bxc6 {[%emt 0:00:01]} 9. Qf3 {[%emt 0:00:02]} Qd7 {[%emt 0:00:08]} 10. Bg5 {[%emt 0:00:05]} Be7 {[%emt 0:00:02]} 11. O-O-O {[%emt 0:00:07]} h6 {[%emt 0:00:04]} 12. Bh4 {[%emt 0:00:12]} O-O {[%emt 0:00:14]} 13. e5 {[%emt 0:00:12]} Nh7 {[%emt 0:00:11]} 14. Bxe7 {[%emt 0:00:11]} Qxe7 {[%emt 0:00:01]} 15. exd6 {[%emt 0:00:03]} cxd6 {[%emt 0:00:02]} 16. Qxc6 {[%emt 0:00:02]} Rfd8 {[%emt 0:00:06]} 17. Rhe1 {[%emt 0:00:12]} Qg5+ {[%emt 0:00:02]} 18. Kb1 {[%emt 0:00:01]} Rac8 {[%emt 0:00:02]} 19. Qd5 {[%emt 0:00:03]} Qf6 {[%emt 0:00:09]} 20. Re3 {[%emt 0:00:11]} Rb8 {[%emt 0:00:04]} 21. Rf3 {[%emt 0:00:03]} Qe6 {[%emt 0:00:08]} 22. Qxe6 {[%emt 0:00:04]} fxe6 {[%emt 0:00:01]} 23. Re3 {[%emt 0:00:08]} e5 {[%emt 0:00:02]} 24. Red3 {[%emt 0:00:02]} Rb6 {[%emt 0:00:04]} 25. Ne4 {[%emt 0:00:07]} Rdb8 {[%emt 0:00:09]} 26. b3 {[%emt 0:00:01]} Nf6 {[%emt 0:00:06]} 27. Nxf6+ {[%emt 0:00:05]} gxf6 {[%emt 0:00:01]} 28. Rxd6 {[%emt 0:00:02]} a5 {[%emt 0:00:08]} 29. Rxb6 {[%emt 0:00:04]} Rxb6 {[%emt 0:00:02]} 30. Rd7 {[%emt 0:00:02]} Ra6 {[%emt 0:00:09]} 31. Kc1 {[%emt 0:00:03]} Re6 {[%emt 0:00:03]} 32. Ra7 {[%emt 0:00:06]} f5 {[%emt 0:00:04]} 33. Rxa5 {[%emt 0:00:01]} Kg7 {[%emt 0:00:00]} 34. Kd2 {[%emt 0:00:05]} Kf6 {[%emt 0:00:04]} 35. c4 {[%emt 0:00:02]} Rd6+ {[%emt 0:00:01]} 36. Rd5 {[%emt 0:00:02]} Ra6 {[%emt 0:00:02]} 37. a4 {[%emt 0:00:03]} Rb6 {[%emt 0:00:01]} 38. Rb5 {[%emt 0:00:01]} Rd6+ {[%emt 0:00:03]} 39. Ke2 {[%emt 0:00:01]} Rd4 {[%emt 0:00:01]} 40. Rb6+ {[%emt 0:00:07]} Kg5 {[%emt 0:00:04]} 41. a5 {[%emt 0:00:01]} Re4+ {[%emt 0:00:02]} 42. Kf1 {[%emt 0:00:06]} Rd4 {[%emt 0:00:01]} 43. Rb4 {[%emt 0:00:07]} Kf4 {[%emt 0:00:03]} 44. a6 {[%emt 0:00:05]} e4 {[%emt 0:00:02]} 45. a7 {[%emt 0:00:04]} Rd8 {[%emt 0:00:05]} 46. Rb8 {[%emt 0:00:09]} Rd1+ {[%emt 0:00:02]} 47. Ke2 {[%emt 0:00:02]} Rb1 {[%emt 0:00:01]} 48. a8=Q {[%emt 0:00:08]} Rxb3 {[%emt 0:00:01]} 49. Rxb3 {[%emt 0:00:03]} 1-0

[Event "Queens Festival Final-D 2022"]
[Site "Tornelo"]
[Date "2022.06.25"]
[Round "10.4"]
[White "Vujovic, Vera"]
[Black "Rozas Lazcano, Valeska"]
[Result "*"]
[ECO "A00"]
[WhiteElo "1353"]
[BlackElo "1551"]
[Annotator "NA RC"]
[PlyCount "20"]
[EventDate "2022.06.24"]
[EventType "tourn"]
[EventCountry "NET"]
[SourceTitle "playchess.com"]
[Source "ChessBase"]
[SourceQuality "1"]
[TimeControl "180+2"]

1. Nc3 {[%emt 0:00:00]} b5 {[%emt 0:00:03]} 2. f3 {[%emt 0:00:02]} d6 {[%emt 0:00:10]} 3. Nxb5 {[%emt 0:00:09]} Nf6 {[%emt 0:00:17]} 4. Kf2 {[%emt 0:01:15]} a5 {[%emt 0:00:59]} 5. f4 {[%emt 0:00:39]} Nc6 {[%emt 0:00:05]} 6. Ke3 {[%emt 0:00:08]} g5 {[%emt 0:00:14]} 7. h4 {[%emt 0:00:11]} g4 {[%emt 0:00:39]} 8. h5 {[%emt 0:00:06]} Ra7 {[%emt 0:00:27]} 9. Nf3 {[%emt 0:00:33]} Ne5 {[%emt 0:00:00]} 10. c4 {[%emt 0:00:10]} Nxf3 {[%emt 0:00:00]} *

[Event "Queens Festival Final-D 2022"]
[Site "Tornelo"]
[Date "2022.06.25"]
[Round "10.5"]
[White "Jiang, Tianyu"]
[Black "Rajaram, Anika"]
[Result "1-0"]
[ECO "A00"]
[WhiteElo "1502"]
[BlackElo "1499"]
[Annotator "NA RC"]
[PlyCount "155"]
[EventDate "2022.06.24"]
[EventType "tourn"]
[EventCountry "NET"]
[SourceTitle "playchess.com"]
[Source "ChessBase"]
[SourceQuality "1"]
[TimeControl "180+2"]

1. Nc3 {[%emt 0:00:02]} d5 {[%emt 0:00:04]} 2. e4 {[%emt 0:00:02]} dxe4 {[%emt 0:00:03]} 3. Nxe4 {[%emt 0:00:01]} Bf5 {[%emt 0:00:03]} 4. Ng3 {[%emt 0:00:01]} Bg6 {[%emt 0:00:02]} 5. Nf3 {[%emt 0:00:02]} e6 {[%emt 0:00:04]} 6. d4 {[%emt 0:00:01]} Nf6 {[%emt 0:00:04]} 7. h4 {[%emt 0:00:04]} h6 {[%emt 0:00:07]} 8. Bc4 {[%emt 0:00:03]} Be7 {[%emt 0:00:07]} 9. Qe2 {[%emt 0:00:22]} O-O {[%emt 0:00:05]} 10. c3 {[%emt 0:00:04]} c5 {[%emt 0:00:07]} 11. Be3 {[%emt 0:00:48]} Qc7 {[%emt 0:00:08]} 12. Ne5 {[%emt 0:00:21]} Bh7 {[%emt 0:00:07]} 13. Bb3 {[%emt 0:00:23]} Nbd7 {[%emt 0:00:09]} 14. Nf3 {[%emt 0:00:23]} b6 {[%emt 0:00:12]} 15. O-O {[%emt 0:00:02]} Rad8 {[%emt 0:00:14]} 16. Rac1 {[%emt 0:00:03]} Bd6 {[%emt 0:00:14]} 17. Nh1 {[%emt 0:00:22]} Be4 {[%emt 0:00:07]} 18. Rfd1 {[%emt 0:00:02]} Bb7 {[%emt 0:00:15]} 19. Bc2 {[%emt 0:00:07]} Bf4 {[%emt 0:00:06]} 20. Qd3 {[%emt 0:00:08]} Be4 {[%emt 0:00:05]} 21. Qe2 {[%emt 0:00:02]} Bxc2 {[%emt 0:00:02]} 22. Qxc2 {[%emt 0:00:02]} Bxe3 {[%emt 0:00:01]} 23. fxe3 {[%emt 0:00:00]} Ng4 {[%emt 0:00:10]} 24. Qe2 {[%emt 0:00:04]} Ndf6 {[%emt 0:00:08]} 25. e4 {[%emt 0:00:04]} Qf4 {[%emt 0:00:05]} 26. Re1 {[%emt 0:00:08]} Nh5 {[%emt 0:00:21]} 27. Rf1 {[%emt 0:00:02]} Ng3 {[%emt 0:00:07]} 28. Nxg3 {[%emt 0:00:02]} Qxg3 {[%emt 0:00:01]} 29. Qe1 {[%emt 0:00:05]} Qxe1 {[%emt 0:00:06]} 30. Rfxe1 {[%emt 0:00:00]} Nf6 {[%emt 0:00:04]} 31. e5 {[%emt 0:00:02]} Nd5 {[%emt 0:00:02]} 32. g3 {[%emt 0:00:01]} Rc8 {[%emt 0:00:04]} 33. c4 {[%emt 0:00:03]} Nb4 {[%emt 0:00:02]} 34. Red1 {[%emt 0:00:04]} Rfd8 {[%emt 0:00:08]} 35. a3 {[%emt 0:00:01]} Na6 {[%emt 0:00:08]} 36. d5 {[%emt 0:00:01]} exd5 {[%emt 0:00:01]} 37. cxd5 {[%emt 0:00:00]} Nc7 {[%emt 0:00:04]} 38. d6 {[%emt 0:00:03]} Ne6 {[%emt 0:00:01]} 39. Rc2 {[%emt 0:00:02]} c4 {[%emt 0:00:04]} 40. Rdc1 {[%emt 0:00:03]} b5 {[%emt 0:00:02]} 41. b3 {[%emt 0:00:02]} Rc5 {[%emt 0:00:03]} 42. bxc4 {[%emt 0:00:01]} Rdc8 {[%emt 0:00:01]} 43. d7 {[%emt 0:00:08]} Rd8 {[%emt 0:00:03]} 44. cxb5 {[%emt 0:00:02]} Rxc2 {[%emt 0:00:02]} 45. Rxc2 {[%emt 0:00:00]} Rxd7 {[%emt 0:00:01]} 46. a4 {[%emt 0:00:01]} Rd3 {[%emt 0:00:03]} 47. Kf2 {[%emt 0:00:02]} Ra3 {[%emt 0:00:03]} 48. Rc4 {[%emt 0:00:04]} Ra2+ {[%emt 0:00:02]} 49. Kg1 {[%emt 0:00:02]} Ra3 {[%emt 0:00:02]} 50. Kg2 {[%emt 0:00:00]} Ra2+ {[%emt 0:00:01]} 51. Kh3 {[%emt 0:00:01]} Ra3 {[%emt 0:00:01]} 52. Nd4 {[%emt 0:00:01]} Kf8 {[%emt 0:00:09]} 53. Nxe6+ {[%emt 0:00:02]} fxe6 {[%emt 0:00:02]} 54. Rc8+ {[%emt 0:00:01]} Kf7 {[%emt 0:00:01]} 55. Rc7+ {[%emt 0:00:02]} Kg6 {[%emt 0:00:01]} 56. Rxa7 {[%emt 0:00:01]} Kf5 {[%emt 0:00:01]} 57. b6 {[%emt 0:00:01]} Kxe5 {[%emt 0:00:01]} 58. b7 {[%emt 0:00:01]} Rb3 {[%emt 0:00:01]} 59. Ra5+ {[%emt 0:00:01]} Kd6 {[%emt 0:00:02]} 60. Ra7 {[%emt 0:00:08]} Kc7 {[%emt 0:00:04]} 61. Kg4 {[%emt 0:00:02]} Kb8 {[%emt 0:00:04]} 62. Ra6 {[%emt 0:00:05]} Kxb7 {[%emt 0:00:01]} 63. Rxe6 {[%emt 0:00:02]} Rb4+ {[%emt 0:00:01]} 64. Kh5 {[%emt 0:00:01]} Rxa4 {[%emt 0:00:04]} 65. Re7+ {[%emt 0:00:01]} Kc8 {[%emt 0:00:01]} 66. Rxg7 {[%emt 0:00:01]} Ra6 {[%emt 0:00:02]} 67. Rg6 {[%emt 0:00:02]} Ra5+ {[%emt 0:00:02]} 68. Kxh6 {[%emt 0:00:01]} Kd8 {[%emt 0:00:00]} 69. g4 {[%emt 0:00:01]} Ke8 {[%emt 0:00:02]} 70. g5 {[%emt 0:00:01]} Kf8 {[%emt 0:00:01]} 71. h5 {[%emt 0:00:01]} Ra7 {[%emt 0:00:01]} 72. Rf6+ {[%emt 0:00:02]} Kg8 {[%emt 0:00:01]} 73. g6 {[%emt 0:00:02]} Ra5 {[%emt 0:00:02]} 74. Rb6 {[%emt 0:00:05]} Ra8 {[%emt 0:00:02]} 75. g7 {[%emt 0:00:04]} Kf7 {[%emt 0:00:02]} 76. Kh7 {[%emt 0:00:02]} Rd8 {[%emt 0:00:06]} 77. Rb7+ {[%emt 0:00:01]} Kf6 {[%emt 0:00:02]} 78. g8=Q {[%emt 0:00:02]} 1-0

[Event "Queens Festival Final-D 2022"]
[Site "Tornelo"]
[Date "2022.06.25"]
[Round "10.6"]
[White "Amulya Guruprasad"]
[Black "Bakhshizada, Asnad"]
[Result "1-0"]
[ECO "C14"]
[WhiteElo "1251"]
[BlackElo "1052"]
[Annotator "NA RC"]
[PlyCount "77"]
[EventDate "2022.06.24"]
[EventType "tourn"]
[EventCountry "NET"]
[SourceTitle "playchess.com"]
[Source "ChessBase"]
[SourceQuality "1"]
[TimeControl "180+2"]

1. e4 {[%emt 0:00:02]} e6 {[%emt 0:00:04]} 2. d4 {[%emt 0:00:02]} d5 {[%emt 0:00:02]} 3. Nc3 {[%emt 0:00:01]} Nf6 {[%emt 0:00:03]} 4. Bg5 {[%emt 0:00:02]} Be7 {[%emt 0:00:03]} 5. e5 {[%emt 0:00:02]} Nfd7 {[%emt 0:00:02]} 6. Bxe7 {[%emt 0:00:02]} Qxe7 {[%emt 0:00:01]} 7. f4 {[%emt 0:00:01]} c5 {[%emt 0:00:02]} 8. Nb5 {[%emt 0:00:02]} Na6 {[%emt 0:00:15]} 9. Nd6+ {[%emt 0:00:02]} Kf8 {[%emt 0:00:03]} 10. Nf3 {[%emt 0:00:06]} Nb6 {[%emt 0:00:10]} 11. Bxa6 {[%emt 0:00:05]} bxa6 {[%emt 0:00:04]} 12. dxc5 {[%emt 0:00:02]} Nd7 {[%emt 0:00:04]} 13. c6 {[%emt 0:00:02]} Nb6 {[%emt 0:00:10]} 14. Qd2 {[%emt 0:00:06]} Qc7 {[%emt 0:00:02]} 15. Qc3 {[%emt 0:00:06]} g6 {[%emt 0:00:20]} 16. O-O-O {[%emt 0:00:08]} Rb8 {[%emt 0:00:08]} 17. b3 {[%emt 0:00:10]} h6 {[%emt 0:00:12]} 18. g4 {[%emt 0:00:04]} Kg7 {[%emt 0:00:07]} 19. h4 {[%emt 0:00:04]} a5 {[%emt 0:00:11]} 20. f5 {[%emt 0:00:03]} a4 {[%emt 0:00:07]} 21. fxg6 {[%emt 0:00:09]} fxg6 {[%emt 0:00:02]} 22. Nd4 {[%emt 0:00:06]} axb3 {[%emt 0:00:09]} 23. cxb3 {[%emt 0:00:02]} a6 {[%emt 0:00:06]} 24. g5 {[%emt 0:00:07]} h5 {[%emt 0:00:13]} 25. Rhf1 {[%emt 0:00:10]} Rf8 {[%emt 0:00:09]} 26. Rxf8 {[%emt 0:00:03]} Kxf8 {[%emt 0:00:01]} 27. Qf3+ {[%emt 0:00:02]} Kg8 {[%emt 0:00:18]} 28. Rf1 {[%emt 0:00:07]} Qg7 {[%emt 0:00:10]} 29. Ne8 {[%emt 0:00:21]} Qe7 {[%emt 0:00:09]} 30. Nf6+ {[%emt 0:00:27]} Kg7 {[%emt 0:00:04]} 31. Nc2 {[%emt 0:00:16]} a5 {[%emt 0:00:05]} 32. Nxh5+ {[%emt 0:00:23]} gxh5 {[%emt 0:00:08]} 33. Qxh5 {[%emt 0:00:01]} Ba6 {[%emt 0:00:09]} 34. Qh6+ {[%emt 0:00:02]} Kg8 {[%emt 0:00:03]} 35. Rf6 {[%emt 0:00:06]} Qg7 {[%emt 0:00:11]} 36. Rg6 {[%emt 0:00:02]} Kf8 {[%emt 0:00:05]} 37. Qxg7+ {[%emt 0:00:03]} Ke8 {[%emt 0:00:02]} 38. Rxe6+ {[%emt 0:00:02]} Kd8 {[%emt 0:00:02]} 39. Rd6+ {[%emt 0:00:03]} 1-0

[Event "Queens Festival Final-D 2022"]
[Site "Tornelo"]
[Date "2022.06.25"]
[Round "11.2"]
[White "Rajaram, Anika"]
[Black "Amulya Guruprasad"]
[Result "1-0"]
[ECO "E62"]
[WhiteElo "1499"]
[BlackElo "1251"]
[Annotator "NA RC"]
[PlyCount "63"]
[EventDate "2022.06.24"]
[EventType "tourn"]
[EventCountry "NET"]
[SourceTitle "playchess.com"]
[Source "ChessBase"]
[SourceQuality "1"]
[TimeControl "180+2"]

1. d4 {[%emt 0:00:02]} Nf6 {[%emt 0:00:07]} 2. c4 {[%emt 0:00:02]} g6 {[%emt 0:00:01]} 3. g3 {[%emt 0:00:01]} c6 {[%emt 0:00:03]} 4. Bg2 {[%emt 0:00:02]} Bg7 {[%emt 0:00:02]} 5. Nc3 {[%emt 0:00:03]} d6 {[%emt 0:00:02]} 6. Nf3 {[%emt 0:00:01]} O-O {[%emt 0:00:02]} 7. O-O {[%emt 0:00:01]} Be6 {[%emt 0:00:02]} 8. Qd3 {[%emt 0:00:10]} Nbd7 {[%emt 0:00:05]} 9. e4 {[%emt 0:00:03]} Nb6 {[%emt 0:00:02]} 10. d5 {[%emt 0:00:03]} cxd5 {[%emt 0:00:02]} 11. cxd5 {[%emt 0:00:02]} Bg4 {[%emt 0:00:02]} 12. h3 {[%emt 0:00:03]} Bd7 {[%emt 0:00:03]} 13. Be3 {[%emt 0:00:02]} Rc8 {[%emt 0:00:05]} 14. Rac1 {[%emt 0:00:03]} Nc4 {[%emt 0:00:03]} 15. Qe2 {[%emt 0:00:11]} b6 {[%emt 0:00:17]} 16. Nd4 {[%emt 0:00:05]} Rc7 {[%emt 0:00:00]} 17. Ncb5 {[%emt 0:00:06]} Nxe3 {[%emt 0:00:24]} 18. Qxe3 {[%emt 0:00:29]} Rxc1 {[%emt 0:00:14]} 19. Rxc1 {[%emt 0:00:03]} a6 {[%emt 0:00:02]} 20. Na7 {[%emt 0:00:07]} Qa8 {[%emt 0:00:19]} 21. Ndc6 {[%emt 0:00:10]} e6 {[%emt 0:00:03]} 22. Qxb6 {[%emt 0:00:06]} exd5 {[%emt 0:00:04]} 23. exd5 {[%emt 0:00:02]} h5 {[%emt 0:00:31]} 24. Ne7+ {[%emt 0:00:06]} Kh7 {[%emt 0:00:04]} 25. Nac6 {[%emt 0:00:01]} Re8 {[%emt 0:00:14]} 26. Qc7 {[%emt 0:00:12]} Bf8 {[%emt 0:00:30]} 27. Qxd6 {[%emt 0:00:25]} Bxc6 {[%emt 0:00:06]} 28. Qxf6 {[%emt 0:00:07]} Bb7 {[%emt 0:00:17]} 29. Qxf7+ {[%emt 0:00:04]} Bg7 {[%emt 0:00:03]} 30. Qxg6+ {[%emt 0:00:01]} Kh8 {[%emt 0:00:01]} 31. Qxh5+ {[%emt 0:00:02]} Bh6 {[%emt 0:00:02]} 32. Qxh6# {[%emt 0:00:01]} 1-0